[Event "Titled Tuesday Blitz March 21 Early 2023"]
[White "Piesik, Piotr"]
[Black "Tarnowska, Aleksandra"]
[WhiteFideId "1136194"]
[BlackFideId "1180967"]
[WhiteElo "2311"]
[BlackElo "1776"]
[Result "1-0"]
[Round "09"]
[TimeControl "180+2"]
[Date "2023.03.21"]
[WhiteClock "0:01:36"]
[BlackClock "0:00:02"]

1. Nf3 {[%clk 0:02:51]}  d5 {[%clk 0:02:56]} 2. g3 {[%clk 0:02:51]}  Nf6 {[%clk 0:02:57]} 3. Bg2 {[%clk 0:02:48]}  Bf5 {[%clk 0:02:55]} 4. O-O {[%clk 0:02:48]}  e6 {[%clk 0:02:51]} 5. c4 {[%clk 0:02:48]}  c6 {[%clk 0:02:50]} 6. cxd5 {[%clk 0:02:47]}  cxd5 {[%clk 0:02:33]} 7. d3 {[%clk 0:02:47]}  Be7 {[%clk 0:02:27]} 8. Qb3 {[%clk 0:02:46]}  b6 {[%clk 0:01:40]} 9. Nc3 {[%clk 0:02:42]}  Nbd7 {[%clk 0:01:30]} 10. Nd4 {[%clk 0:02:36]}  Nc5 {[%clk 0:01:18]} 11. Qb5+ {[%clk 0:02:27]}  Qd7 {[%clk 0:01:08]} 12. Nxf5 {[%clk 0:02:27]}  exf5 {[%clk 0:00:54]} 13. Nxd5 {[%clk 0:02:12]}  Nxd5 {[%clk 0:00:24]} 14. Qxd7+ {[%clk 0:02:10]}  Kxd7 {[%clk 0:00:25]} 15. Bxd5 {[%clk 0:02:10]}  Rad8 {[%clk 0:00:22]} 16. Bxf7 {[%clk 0:02:08]}  Rhf8 {[%clk 0:00:18]} 17. Bc4 {[%clk 0:02:08]}  h6 {[%clk 0:00:16]} 18. b4 {[%clk 0:02:01]}  Ne6 {[%clk 0:00:12]} 19. Bxe6+ {[%clk 0:01:58]}  Kxe6 {[%clk 0:00:13]} 20. b5 {[%clk 0:01:56]}  g5 {[%clk 0:00:12]} 21. Bd2 {[%clk 0:01:48]}  f4 {[%clk 0:00:10]} 22. f3 {[%clk 0:01:44]}  h5 {[%clk 0:00:09]} 23. Rac1 {[%clk 0:01:42]}  Bc5+ {[%clk 0:00:09]} 24. Kg2 {[%clk 0:01:41]}  h4 {[%clk 0:00:02]} 25. gxh4 {[%clk 0:01:40]}  gxh4 {[%clk 0:00:02]} 26. Kh3 {[%clk 0:01:40]}  Rf5 {[%clk 0:00:02]} 27. Rc4 {[%clk 0:01:38]}  Rg8 {[%clk 0:00:02]} 28. Rxf4 {[%clk 0:01:35]}  Rfg5 {[%clk 0:00:01]} 29. Re4+ {[%clk 0:01:34]}  Kd6 {[%clk 0:00:01]} 30. Bxg5 {[%clk 0:01:34]}  Rxg5 {[%clk 0:00:02]} 31. f4 {[%clk 0:01:34]}  Rg6 {[%clk 0:00:02]} 32. f5 {[%clk 0:01:34]}  Rf6 {[%clk 0:00:02]} 33. Re6+ {[%clk 0:01:35]}  Rxe6 {[%clk 0:00:02]} 34. fxe6 {[%clk 0:01:35]}  Kxe6 {[%clk 0:00:03]} 35. Kxh4 {[%clk 0:01:36]}  Be7+ {[%clk 0:00:02]} 36. Kg4 {[%clk 0:01:36]} 1-0


[Site "https://www.chess.com"]

[Event "Titled Tuesday Blitz March 21 Early 2023"]
[White "Botez, Alexandra"]
[Black "Yelisieiev, Yevhenii"]
[WhiteFideId "2603365"]
[BlackFideId "14139642"]
[WhiteElo "2059"]
[BlackElo "2447"]
[Result "0-1"]
[Round "09"]
[TimeControl "180+2"]
[Date "2023.03.21"]
[WhiteClock "0:00:05"]
[BlackClock "0:00:10"]

1. d4 {[%clk 0:02:48]}  d6 {[%clk 0:02:59]} 2. c4 {[%clk 0:02:44]}  e5 {[%clk 0:02:59]} 3. Nf3 {[%clk 0:02:35]}  Nd7 {[%clk 0:02:57]} 4. e4 {[%clk 0:02:35]}  Ngf6 {[%clk 0:02:57]} 5. Nc3 {[%clk 0:02:35]}  Be7 {[%clk 0:02:57]} 6. Be3 {[%clk 0:02:34]}  O-O {[%clk 0:02:57]} 7. Bd3 {[%clk 0:02:32]}  c6 {[%clk 0:02:54]} 8. h3 {[%clk 0:02:32]}  a6 {[%clk 0:02:50]} 9. O-O {[%clk 0:02:32]}  b5 {[%clk 0:02:50]} 10. b4 {[%clk 0:02:24]}  Re8 {[%clk 0:02:32]} 11. d5 {[%clk 0:02:12]}  bxc4 {[%clk 0:02:24]} 12. dxc6 {[%clk 0:01:58]}  cxd3 {[%clk 0:02:19]} 13. cxd7 {[%clk 0:01:58]}  Qxd7 {[%clk 0:02:12]} 14. Qxd3 {[%clk 0:01:57]}  Bb7 {[%clk 0:02:12]} 15. Rfd1 {[%clk 0:01:53]}  Rec8 {[%clk 0:01:40]} 16. Nd2 {[%clk 0:01:40]}  Rc6 {[%clk 0:01:27]} 17. Nb3 {[%clk 0:01:28]}  Rac8 {[%clk 0:01:18]} 18. Na4 {[%clk 0:01:12]}  Bd8 {[%clk 0:01:05]} 19. f3 {[%clk 0:01:06]}  Rc4 {[%clk 0:00:52]} 20. Nac5 {[%clk 0:00:45]}  Qb5 {[%clk 0:00:37]} 21. Qxd6 {[%clk 0:00:34]}  Bc7 {[%clk 0:00:19]} 22. Qd3 {[%clk 0:00:29]}  Rxb4 {[%clk 0:00:17]} 23. Qd2 {[%clk 0:00:21]}  Bb6 {[%clk 0:00:15]} 24. Nd7 {[%clk 0:00:14]}  Nxd7 {[%clk 0:00:13]} 25. Qxd7 {[%clk 0:00:12]}  Bxe3+ {[%clk 0:00:13]} 26. Kh2 {[%clk 0:00:13]}  Qxd7 {[%clk 0:00:12]} 27. Rxd7 {[%clk 0:00:14]}  Bc6 {[%clk 0:00:11]} 28. Rd6 {[%clk 0:00:13]}  Bb5 {[%clk 0:00:11]} 29. Rad1 {[%clk 0:00:13]}  f6 {[%clk 0:00:11]} 30. h4 {[%clk 0:00:13]}  Bf4+ {[%clk 0:00:11]} 31. Kh3 {[%clk 0:00:12]}  h5 {[%clk 0:00:12]} 32. g3 {[%clk 0:00:12]}  Be3 {[%clk 0:00:12]} 33. g4 {[%clk 0:00:11]}  hxg4+ {[%clk 0:00:12]} 34. Kxg4 {[%clk 0:00:12]}  Rbc4 {[%clk 0:00:12]} 35. Kf5 {[%clk 0:00:11]}  Be8 {[%clk 0:00:10]} 36. Rh1 {[%clk 0:00:10]}  Bh5 {[%clk 0:00:09]} 37. Rd7 {[%clk 0:00:07]}  Re8 {[%clk 0:00:09]} 38. Rb1 {[%clk 0:00:07]}  g6+ {[%clk 0:00:09]} 39. Kxf6 {[%clk 0:00:06]}  Rc6+ {[%clk 0:00:10]} 40. Rd6 {[%clk 0:00:05]}  Rxd6# {[%clk 0:00:10]} 0-1


[Site "https://www.chess.com"]

[Event "Titled Tuesday Blitz March 21 Early 2023"]
[White "Jaskolka, Tomasz"]
[Black "Abrosimov, Vladimir"]
[WhiteFideId "1170791"]
[BlackFideId "4166892"]
[WhiteElo "2155"]
[BlackElo "2336"]
[Result "1-0"]
[Round "09"]
[TimeControl "180+2"]
[Date "2023.03.21"]
[WhiteClock "0:00:51"]
[BlackClock "0:00:01"]

1. e4 {[%clk 0:02:56]}  c5 {[%clk 0:02:53]} 2. Nf3 {[%clk 0:02:57]}  d6 {[%clk 0:02:51]} 3. b4 {[%clk 0:02:57]}  cxb4 {[%clk 0:02:50]} 4. d4 {[%clk 0:02:57]}  Nf6 {[%clk 0:02:50]} 5. Bd3 {[%clk 0:02:58]}  Nc6 {[%clk 0:02:49]} 6. a3 {[%clk 0:02:57]}  bxa3 {[%clk 0:02:46]} 7. c3 {[%clk 0:02:57]}  e5 {[%clk 0:02:45]} 8. d5 {[%clk 0:02:46]}  Nb8 {[%clk 0:02:45]} 9. Nxa3 {[%clk 0:02:46]}  Be7 {[%clk 0:02:45]} 10. Nb5 {[%clk 0:02:40]}  a6 {[%clk 0:02:44]} 11. Nxe5 {[%clk 0:02:37]}  dxe5 {[%clk 0:02:37]} 12. d6 {[%clk 0:02:37]}  Bxd6 {[%clk 0:02:20]} 13. Nxd6+ {[%clk 0:02:35]}  Qxd6 {[%clk 0:02:03]} 14. Bb5+ {[%clk 0:02:35]}  axb5 {[%clk 0:02:03]} 15. Qxd6 {[%clk 0:02:33]}  Rxa1 {[%clk 0:02:03]} 16. Qxb8 {[%clk 0:01:57]}  Rxc1+ {[%clk 0:02:00]} 17. Kd2 {[%clk 0:01:57]}  Rxh1 {[%clk 0:01:56]} 18. Qxc8+ {[%clk 0:01:58]}  Ke7 {[%clk 0:01:54]} 19. Qxh8 {[%clk 0:01:55]}  Nxe4+ {[%clk 0:01:44]} 20. Kc2 {[%clk 0:01:44]}  Rf1 {[%clk 0:01:24]} 21. Qxg7 {[%clk 0:01:39]}  Rxf2+ {[%clk 0:01:24]} 22. Kd3 {[%clk 0:01:33]}  Nf6 {[%clk 0:01:15]} 23. Qg3 {[%clk 0:01:25]}  Rd2+ {[%clk 0:01:06]} 24. Ke3 {[%clk 0:01:20]}  Rd5 {[%clk 0:00:58]} 25. Qf3 {[%clk 0:01:06]}  e4 {[%clk 0:00:47]} 26. Qf4 {[%clk 0:01:01]}  Rd3+ {[%clk 0:00:45]} 27. Ke2 {[%clk 0:01:00]}  Rxc3 {[%clk 0:00:39]} 28. Qe5+ {[%clk 0:01:00]}  Kf8 {[%clk 0:00:35]} 29. Qxc3 {[%clk 0:00:59]}  Nd5 {[%clk 0:00:30]} 30. Qc5+ {[%clk 0:00:56]}  Ne7 {[%clk 0:00:16]} 31. Qxb5 {[%clk 0:00:56]}  Kg7 {[%clk 0:00:14]} 32. Qxb7 {[%clk 0:00:56]}  Ng6 {[%clk 0:00:09]} 33. Qxe4 {[%clk 0:00:56]}  h6 {[%clk 0:00:08]} 34. Qd4+ {[%clk 0:00:54]}  Kh7 {[%clk 0:00:08]} 35. Qa1 {[%clk 0:00:54]}  Nf8 {[%clk 0:00:06]} 36. Kf3 {[%clk 0:00:54]}  Ne6 {[%clk 0:00:05]} 37. Ke4 {[%clk 0:00:53]}  Ng5+ {[%clk 0:00:04]} 38. Kf5 {[%clk 0:00:53]}  Ne6 {[%clk 0:00:03]} 39. Kf6 {[%clk 0:00:53]}  Ng5 {[%clk 0:00:01]} 40. h4 {[%clk 0:00:51]} 1-0


[Site "https://www.chess.com"]

[Event "Titled Tuesday Blitz March 21 Early 2023"]
[White "Vivas Zamora, Fabian Ernesto"]
[Black "salgadoLO"]
[WhiteFideId "3902480"]
[WhiteElo "2262"]
[BlackElo "2195"]
[Result "1-0"]
[Round "09"]
[TimeControl "180+2"]
[Date "2023.03.21"]
[WhiteClock "0:00:06"]
[BlackClock "0:00:06"]

1. e4 {[%clk 0:02:50]}  c5 {[%clk 0:02:58]} 2. Nc3 {[%clk 0:02:48]}  a6 {[%clk 0:02:57]} 3. g3 {[%clk 0:02:44]}  b5 {[%clk 0:02:57]} 4. Bg2 {[%clk 0:02:44]}  Bb7 {[%clk 0:02:57]} 5. Nh3 {[%clk 0:02:37]}  e6 {[%clk 0:02:48]} 6. d3 {[%clk 0:02:30]}  b4 {[%clk 0:02:47]} 7. Na4 {[%clk 0:02:28]}  d5 {[%clk 0:02:44]} 8. exd5 {[%clk 0:02:06]}  Bxd5 {[%clk 0:02:42]} 9. O-O {[%clk 0:01:54]}  Nf6 {[%clk 0:02:31]} 10. Bg5 {[%clk 0:01:50]}  Bxg2 {[%clk 0:02:22]} 11. Kxg2 {[%clk 0:01:51]}  Qd5+ {[%clk 0:02:06]} 12. Qf3 {[%clk 0:01:46]}  Nbd7 {[%clk 0:02:04]} 13. Bxf6 {[%clk 0:01:31]}  Nxf6 {[%clk 0:02:03]} 14. Nb6 {[%clk 0:01:27]}  Qxf3+ {[%clk 0:02:00]} 15. Kxf3 {[%clk 0:01:28]}  Rb8 {[%clk 0:01:55]} 16. Nc4 {[%clk 0:01:28]}  Be7 {[%clk 0:01:54]} 17. a3 {[%clk 0:01:26]}  b3 {[%clk 0:01:43]} 18. c3 {[%clk 0:01:26]}  O-O {[%clk 0:01:33]} 19. a4 {[%clk 0:01:15]}  Rfd8 {[%clk 0:01:30]} 20. Rfd1 {[%clk 0:01:13]}  Nd5 {[%clk 0:01:26]} 21. Nf4 {[%clk 0:01:11]}  Nxf4 {[%clk 0:01:19]} 22. Kxf4 {[%clk 0:01:11]}  Rd5 {[%clk 0:01:15]} 23. Ke3 {[%clk 0:00:58]}  g5 {[%clk 0:01:09]} 24. f3 {[%clk 0:00:52]}  h5 {[%clk 0:00:53]} 25. Ra3 {[%clk 0:00:33]}  f5 {[%clk 0:00:38]} 26. a5 {[%clk 0:00:12]}  f4+ {[%clk 0:00:30]} 27. Ke2 {[%clk 0:00:11]}  fxg3 {[%clk 0:00:24]} 28. hxg3 {[%clk 0:00:12]}  Kg7 {[%clk 0:00:22]} 29. Nb6 {[%clk 0:00:10]}  Re5+ {[%clk 0:00:18]} 30. Kf2 {[%clk 0:00:10]}  Rf8 {[%clk 0:00:17]} 31. Nd7 {[%clk 0:00:06]}  Ref5 {[%clk 0:00:17]} 32. Nxf8 {[%clk 0:00:06]}  Bxf8 {[%clk 0:00:14]} 33. Rxb3 {[%clk 0:00:07]}  Bd6 {[%clk 0:00:12]} 34. Rb7+ {[%clk 0:00:06]}  Kg6 {[%clk 0:00:11]} 35. Rb6 {[%clk 0:00:07]}  Be7 {[%clk 0:00:10]} 36. Rxe6+ {[%clk 0:00:07]}  Kf7 {[%clk 0:00:10]} 37. Rxa6 {[%clk 0:00:07]}  h4 {[%clk 0:00:11]} 38. gxh4 {[%clk 0:00:07]}  gxh4 {[%clk 0:00:11]} 39. Re1 {[%clk 0:00:06]}  Bg5 {[%clk 0:00:10]} 40. Ra7+ {[%clk 0:00:06]}  Kg6 {[%clk 0:00:09]} 41. Ra6+ {[%clk 0:00:06]}  Kh5 {[%clk 0:00:09]} 42. Re8 {[%clk 0:00:06]}  Bh6 {[%clk 0:00:07]} 43. Rh8 {[%clk 0:00:06]}  h3 {[%clk 0:00:06]} 44. Rhxh6+ {[%clk 0:00:06]} 1-0


[Site "https://www.chess.com"]

[Event "Titled Tuesday Blitz March 21 Early 2023"]
[White "Mirzanurov, Bulat"]
[Black "Ardila, Oscar Humberto"]
[WhiteFideId "4184521"]
[BlackFideId "4404742"]
[WhiteElo "2019"]
[BlackElo "1911"]
[Result "0-1"]
[Round "09"]
[TimeControl "180+2"]
[Date "2023.03.21"]
[WhiteClock "0:02:35"]
[BlackClock "0:02:39"]

1. e4 {[%clk 0:03:00]}  e5 {[%clk 0:02:58]} 2. Nf3 {[%clk 0:03:00]}  Nf6 {[%clk 0:02:58]} 3. Nxe5 {[%clk 0:02:59]}  d6 {[%clk 0:02:58]} 4. Nf3 {[%clk 0:02:58]}  Nxe4 {[%clk 0:02:58]} 5. d4 {[%clk 0:02:58]}  Be7 {[%clk 0:02:58]} 6. Bd3 {[%clk 0:02:58]}  Nf6 {[%clk 0:02:58]} 7. O-O {[%clk 0:02:57]}  Bg4 {[%clk 0:02:57]} 8. h3 {[%clk 0:02:56]}  Bh5 {[%clk 0:02:57]} 9. c4 {[%clk 0:02:55]}  O-O {[%clk 0:02:57]} 10. Be3 {[%clk 0:02:54]}  Nc6 {[%clk 0:02:56]} 11. a3 {[%clk 0:02:51]}  Re8 {[%clk 0:02:55]} 12. Nbd2 {[%clk 0:02:48]}  Qd7 {[%clk 0:02:55]} 13. b4 {[%clk 0:02:43]}  Bg6 {[%clk 0:02:51]} 14. Bxg6 {[%clk 0:02:40]}  hxg6 {[%clk 0:02:50]} 15. b5 {[%clk 0:02:40]}  Nd8 {[%clk 0:02:47]} 16. Qc2 {[%clk 0:02:37]}  c6 {[%clk 0:02:42]} 17. a4 {[%clk 0:02:35]}  Ne6 {[%clk 0:02:39]} 0-1


[Site "https://www.chess.com"]

[Event "Titled Tuesday Blitz March 21 Early 2023"]
[White "Mrudul Dehankar"]
[Black "lisjakzlatko1"]
[WhiteFideId "25096990"]
[WhiteElo "2139"]
[BlackElo "2197"]
[Result "1-0"]
[Round "09"]
[TimeControl "180+2"]
[Date "2023.03.21"]
[WhiteClock "0:00:40"]
[BlackClock "0:00:04"]

1. e4 {[%clk 0:02:54]}  d6 {[%clk 0:02:58]} 2. d4 {[%clk 0:02:53]}  Nf6 {[%clk 0:02:59]} 3. Nc3 {[%clk 0:02:53]}  c6 {[%clk 0:03:00]} 4. Nf3 {[%clk 0:02:53]}  Bg4 {[%clk 0:02:58]} 5. h3 {[%clk 0:02:52]}  Bh5 {[%clk 0:02:57]} 6. Be2 {[%clk 0:02:52]}  e6 {[%clk 0:02:57]} 7. Be3 {[%clk 0:02:52]}  Be7 {[%clk 0:02:56]} 8. Qd2 {[%clk 0:02:50]}  O-O {[%clk 0:02:53]} 9. O-O-O {[%clk 0:02:47]}  d5 {[%clk 0:02:52]} 10. e5 {[%clk 0:02:46]}  Ne4 {[%clk 0:02:43]} 11. Nxe4 {[%clk 0:02:44]}  dxe4 {[%clk 0:02:42]} 12. Nh2 {[%clk 0:02:43]}  Bxe2 {[%clk 0:02:28]} 13. Qxe2 {[%clk 0:02:43]}  Bg5 {[%clk 0:02:28]} 14. Qg4 {[%clk 0:02:39]}  Bxe3+ {[%clk 0:02:25]} 15. fxe3 {[%clk 0:02:39]}  Qd5 {[%clk 0:02:24]} 16. Kb1 {[%clk 0:02:38]}  a5 {[%clk 0:02:23]} 17. Nf1 {[%clk 0:02:37]}  a4 {[%clk 0:02:22]} 18. Ng3 {[%clk 0:02:37]}  a3 {[%clk 0:02:18]} 19. b3 {[%clk 0:02:35]}  Qa5 {[%clk 0:01:48]} 20. Nxe4 {[%clk 0:02:33]}  Nd7 {[%clk 0:01:49]} 21. Rhf1 {[%clk 0:02:28]}  c5 {[%clk 0:01:44]} 22. Qg5 {[%clk 0:01:54]}  cxd4 {[%clk 0:01:32]} 23. exd4 {[%clk 0:01:43]}  Nb6 {[%clk 0:01:22]} 24. Rf3 {[%clk 0:01:34]}  Kh8 {[%clk 0:01:14]} 25. Rg3 {[%clk 0:01:30]}  Rg8 {[%clk 0:01:04]} 26. Qh5 {[%clk 0:01:22]}  g6 {[%clk 0:00:53]} 27. Qh4 {[%clk 0:01:17]}  Rg7 {[%clk 0:00:53]} 28. Rf3 {[%clk 0:01:10]}  Nd5 {[%clk 0:00:53]} 29. c4 {[%clk 0:01:08]}  Nb6 {[%clk 0:00:39]} 30. Ng5 {[%clk 0:01:02]}  Rf8 {[%clk 0:00:34]} 31. Nxe6 {[%clk 0:00:56]}  Rc8 {[%clk 0:00:19]} 32. Nxg7 {[%clk 0:00:51]}  Nxc4 {[%clk 0:00:10]} 33. bxc4 {[%clk 0:00:43]}  Qb4+ {[%clk 0:00:08]} 34. Rb3 {[%clk 0:00:41]}  Qxc4 {[%clk 0:00:08]} 35. Qf2 {[%clk 0:00:40]}  Kxg7 {[%clk 0:00:06]} 36. Qd2 {[%clk 0:00:39]}  h5 {[%clk 0:00:04]} 37. Rc1 {[%clk 0:00:40]} 1-0


[Site "https://www.chess.com"]

[Event "Titled Tuesday Blitz March 21 Early 2023"]
[White "Martinez, Shawn"]
[Black "Kiseleva, Arina"]
[WhiteFideId "2039770"]
[BlackFideId "4164989"]
[WhiteElo "2174"]
[BlackElo "1756"]
[Result "1/2-1/2"]
[Round "09"]
[TimeControl "180+2"]
[Date "2023.03.21"]
[WhiteClock "0:00:12"]
[BlackClock "0:00:02"]

1. e4 {[%clk 0:02:47]}  c6 {[%clk 0:02:54]} 2. d4 {[%clk 0:02:35]}  d5 {[%clk 0:02:53]} 3. exd5 {[%clk 0:02:34]}  cxd5 {[%clk 0:02:53]} 4. Bd3 {[%clk 0:02:35]}  Nc6 {[%clk 0:02:53]} 5. c3 {[%clk 0:02:32]}  Nf6 {[%clk 0:02:53]} 6. h3 {[%clk 0:02:33]}  g6 {[%clk 0:02:52]} 7. Nf3 {[%clk 0:02:33]}  Bf5 {[%clk 0:02:51]} 8. O-O {[%clk 0:02:33]}  Bxd3 {[%clk 0:02:44]} 9. Qxd3 {[%clk 0:02:33]}  e6 {[%clk 0:02:44]} 10. Re1 {[%clk 0:02:28]}  h5 {[%clk 0:02:35]} 11. Bg5 {[%clk 0:02:23]}  Be7 {[%clk 0:02:34]} 12. Nbd2 {[%clk 0:02:22]}  Qc7 {[%clk 0:02:32]} 13. Ne5 {[%clk 0:02:18]}  Nxe5 {[%clk 0:02:21]} 14. dxe5 {[%clk 0:02:16]}  Nh7 {[%clk 0:02:03]} 15. Bxe7 {[%clk 0:02:14]}  Qxe7 {[%clk 0:02:02]} 16. Nf3 {[%clk 0:02:14]}  a6 {[%clk 0:01:50]} 17. Nd4 {[%clk 0:02:13]}  Ng5 {[%clk 0:01:46]} 18. f3 {[%clk 0:02:00]}  h4 {[%clk 0:01:25]} 19. Qe3 {[%clk 0:01:58]}  Nh7 {[%clk 0:01:17]} 20. Nb3 {[%clk 0:01:56]}  Nf8 {[%clk 0:01:07]} 21. Rac1 {[%clk 0:01:50]}  Rc8 {[%clk 0:01:02]} 22. Qa7 {[%clk 0:01:42]}  g5 {[%clk 0:00:45]} 23. Nd4 {[%clk 0:01:36]}  Ng6 {[%clk 0:00:42]} 24. Qb6 {[%clk 0:01:25]}  Nf4 {[%clk 0:00:40]} 25. Re3 {[%clk 0:01:17]}  O-O {[%clk 0:00:37]} 26. Kh2 {[%clk 0:01:14]}  Qc7 {[%clk 0:00:27]} 27. Qb3 {[%clk 0:01:08]}  b5 {[%clk 0:00:25]} 28. Rce1 {[%clk 0:01:07]}  Qc4 {[%clk 0:00:15]} 29. Qd1 {[%clk 0:01:06]}  b4 {[%clk 0:00:15]} 30. Qd2 {[%clk 0:01:04]}  bxc3 {[%clk 0:00:13]} 31. bxc3 {[%clk 0:01:05]}  Rb8 {[%clk 0:00:11]} 32. Qf2 {[%clk 0:01:04]}  Rb7 {[%clk 0:00:08]} 33. g3 {[%clk 0:01:04]}  Ng6 {[%clk 0:00:04]} 34. gxh4 {[%clk 0:01:00]}  gxh4 {[%clk 0:00:05]} 35. f4 {[%clk 0:00:59]}  Rfb8 {[%clk 0:00:05]} 36. f5 {[%clk 0:00:59]}  Rb2 {[%clk 0:00:04]} 37. R1e2 {[%clk 0:00:59]}  Rxe2 {[%clk 0:00:03]} 38. Rxe2 {[%clk 0:00:58]}  exf5 {[%clk 0:00:04]} 39. e6 {[%clk 0:00:57]}  Qxc3 {[%clk 0:00:03]} 40. exf7+ {[%clk 0:00:56]}  Kg7 {[%clk 0:00:03]} 41. Nxf5+ {[%clk 0:00:56]}  Kf8 {[%clk 0:00:02]} 42. Nd6 {[%clk 0:00:19]}  Qg3+ {[%clk 0:00:02]} 43. Qxg3 {[%clk 0:00:15]}  hxg3+ {[%clk 0:00:03]} 44. Kxg3 {[%clk 0:00:15]}  Ne7 {[%clk 0:00:03]} 45. Kg4 {[%clk 0:00:14]}  Rb4+ {[%clk 0:00:03]} 46. Kg5 {[%clk 0:00:14]}  Rb6 {[%clk 0:00:03]} 47. Re6 {[%clk 0:00:12]}  d4 {[%clk 0:00:03]} 48. Kf6 {[%clk 0:00:13]}  a5 {[%clk 0:00:02]} 49. Ke5 {[%clk 0:00:12]}  d3 {[%clk 0:00:02]} 50. Ne4 {[%clk 0:00:10]}  Rb5+ {[%clk 0:00:02]} 51. Kf6 {[%clk 0:00:11]}  Nd5+ {[%clk 0:00:02]} 52. Kg6 {[%clk 0:00:11]}  Ne7+ {[%clk 0:00:02]} 53. Kf6 {[%clk 0:00:11]}  Nd5+ {[%clk 0:00:02]} 54. Ke5 {[%clk 0:00:11]}  Ne7+ {[%clk 0:00:02]} 55. Kf6 {[%clk 0:00:12]} 1/2-1/2


[Site "https://www.chess.com"]

[Event "Titled Tuesday Blitz March 21 Early 2023"]
[White "Kuchava, Ana"]
[Black "Biriukov, Ilja"]
[WhiteFideId "13605348"]
[BlackFideId "4113373"]
[WhiteElo "2001"]
[BlackElo "2426"]
[Result "0-1"]
[Round "09"]
[TimeControl "180+2"]
[Date "2023.03.21"]
[WhiteClock "0:00:01"]
[BlackClock "0:01:11"]

1. d4 {[%clk 0:03:00]}  Nf6 {[%clk 0:02:58]} 2. Nf3 {[%clk 0:02:59]}  g6 {[%clk 0:02:58]} 3. c4 {[%clk 0:02:55]}  Bg7 {[%clk 0:02:58]} 4. Nc3 {[%clk 0:02:51]}  d6 {[%clk 0:02:59]} 5. e4 {[%clk 0:02:50]}  O-O {[%clk 0:02:57]} 6. Be2 {[%clk 0:02:50]}  Nbd7 {[%clk 0:02:58]} 7. O-O {[%clk 0:02:50]}  e5 {[%clk 0:02:57]} 8. Re1 {[%clk 0:02:50]}  Re8 {[%clk 0:02:52]} 9. Bf1 {[%clk 0:02:49]}  c6 {[%clk 0:02:50]} 10. d5 {[%clk 0:02:19]}  cxd5 {[%clk 0:02:49]} 11. cxd5 {[%clk 0:02:16]}  a6 {[%clk 0:02:48]} 12. a4 {[%clk 0:02:07]}  Rf8 {[%clk 0:02:47]} 13. b4 {[%clk 0:01:47]}  Ne8 {[%clk 0:02:38]} 14. Bb2 {[%clk 0:01:35]}  f5 {[%clk 0:02:36]} 15. Rc1 {[%clk 0:01:16]}  Bh6 {[%clk 0:02:27]} 16. Rc2 {[%clk 0:01:13]}  Ndf6 {[%clk 0:02:22]} 17. Bd3 {[%clk 0:00:53]}  f4 {[%clk 0:02:20]} 18. h3 {[%clk 0:00:47]}  g5 {[%clk 0:02:15]} 19. Nh2 {[%clk 0:00:45]}  Bg7 {[%clk 0:02:11]} 20. Ng4 {[%clk 0:00:37]}  h5 {[%clk 0:02:08]} 21. Nxf6+ {[%clk 0:00:36]}  Nxf6 {[%clk 0:02:07]} 22. f3 {[%clk 0:00:27]}  g4 {[%clk 0:02:04]} 23. hxg4 {[%clk 0:00:24]}  hxg4 {[%clk 0:02:04]} 24. Kf2 {[%clk 0:00:22]}  Qb6+ {[%clk 0:01:51]} 25. Ke2 {[%clk 0:00:19]}  gxf3+ {[%clk 0:01:25]} 26. gxf3 {[%clk 0:00:18]}  Nh5 {[%clk 0:01:25]} 27. Kd2 {[%clk 0:00:11]}  Qxb4 {[%clk 0:01:24]} 28. Kc1 {[%clk 0:00:09]}  Bd7 {[%clk 0:01:22]} 29. Rh1 {[%clk 0:00:08]}  Ng3 {[%clk 0:01:20]} 30. Rg1 {[%clk 0:00:04]}  Rac8 {[%clk 0:01:15]} 31. Ne2 {[%clk 0:00:01]}  Bxa4 {[%clk 0:01:11]} 0-1


[Site "https://www.chess.com"]

[Event "Titled Tuesday Blitz March 21 Early 2023"]
[White "victormago"]
[Black "Palacio,Igor Da Paz"]
[BlackFideId "2121140"]
[WhiteElo "2238"]
[BlackElo "2126"]
[Result "1-0"]
[Round "09"]
[TimeControl "180+2"]
[Date "2023.03.21"]
[WhiteClock "0:00:33"]
[BlackClock "0:00:01"]

1. d4 {[%clk 0:03:00]}  Nf6 {[%clk 0:02:59]} 2. c4 {[%clk 0:02:59]}  g6 {[%clk 0:02:59]} 3. Nc3 {[%clk 0:02:58]}  d6 {[%clk 0:02:59]} 4. e4 {[%clk 0:02:58]}  Nbd7 {[%clk 0:02:59]} 5. Be2 {[%clk 0:02:57]}  Bg7 {[%clk 0:02:58]} 6. Bg5 {[%clk 0:02:53]}  h6 {[%clk 0:02:54]} 7. Be3 {[%clk 0:02:52]}  a6 {[%clk 0:02:42]} 8. Qd2 {[%clk 0:02:47]}  b6 {[%clk 0:02:40]} 9. f3 {[%clk 0:02:45]}  Bb7 {[%clk 0:02:40]} 10. Nh3 {[%clk 0:02:44]}  c5 {[%clk 0:02:34]} 11. d5 {[%clk 0:02:43]}  Rb8 {[%clk 0:02:26]} 12. a4 {[%clk 0:02:39]}  Bc8 {[%clk 0:02:25]} 13. Nf2 {[%clk 0:02:37]}  g5 {[%clk 0:02:21]} 14. O-O {[%clk 0:02:31]}  Ne5 {[%clk 0:02:19]} 15. b3 {[%clk 0:02:29]}  Ng6 {[%clk 0:02:10]} 16. Rac1 {[%clk 0:02:26]}  Nd7 {[%clk 0:02:05]} 17. Nd3 {[%clk 0:02:24]}  Nde5 {[%clk 0:02:03]} 18. g3 {[%clk 0:02:22]}  Bh3 {[%clk 0:01:59]} 19. Rf2 {[%clk 0:02:21]}  Nxd3 {[%clk 0:01:49]} 20. Bxd3 {[%clk 0:02:19]}  Ne5 {[%clk 0:01:49]} 21. Bf1 {[%clk 0:02:19]}  Bc8 {[%clk 0:01:46]} 22. Bg2 {[%clk 0:02:13]}  Bd7 {[%clk 0:01:41]} 23. Qe2 {[%clk 0:02:11]}  O-O {[%clk 0:01:33]} 24. h3 {[%clk 0:02:10]}  b5 {[%clk 0:01:28]} 25. axb5 {[%clk 0:02:08]}  axb5 {[%clk 0:01:28]} 26. cxb5 {[%clk 0:02:08]}  Qa5 {[%clk 0:01:25]} 27. f4 {[%clk 0:01:44]}  gxf4 {[%clk 0:01:23]} 28. gxf4 {[%clk 0:01:44]}  Ng6 {[%clk 0:01:21]} 29. f5 {[%clk 0:01:34]}  Ne5 {[%clk 0:00:50]} 30. Qh5 {[%clk 0:01:32]}  Kh7 {[%clk 0:00:40]} 31. f6 {[%clk 0:01:13]}  exf6 {[%clk 0:00:39]} 32. Rxf6 {[%clk 0:01:11]}  Ng6 {[%clk 0:00:24]} 33. Rxd6 {[%clk 0:01:10]}  Bxb5 {[%clk 0:00:11]} 34. Nxb5 {[%clk 0:01:08]}  Qxb5 {[%clk 0:00:12]} 35. e5 {[%clk 0:00:51]}  Qxb3 {[%clk 0:00:12]} 36. Re1 {[%clk 0:00:47]}  Qc3 {[%clk 0:00:11]} 37. Bf2 {[%clk 0:00:46]}  Bxe5 {[%clk 0:00:05]} 38. Rxg6 {[%clk 0:00:39]}  fxg6 {[%clk 0:00:05]} 39. Qxe5 {[%clk 0:00:38]}  Qxe5 {[%clk 0:00:04]} 40. Rxe5 {[%clk 0:00:38]}  c4 {[%clk 0:00:03]} 41. Re7+ {[%clk 0:00:35]}  Kg8 {[%clk 0:00:03]} 42. Bd4 {[%clk 0:00:35]}  Rf7 {[%clk 0:00:02]} 43. d6 {[%clk 0:00:34]}  Rxe7 {[%clk 0:00:01]} 44. dxe7 {[%clk 0:00:34]}  Re8 {[%clk 0:00:02]} 45. Bd5+ {[%clk 0:00:33]}  Kh7 {[%clk 0:00:01]} 46. Bf6 {[%clk 0:00:33]} 1-0


[Site "https://www.chess.com"]